Cogmind - Beta 15 @@@ ROGUE MODE // 2025.09.01 @ 20:59:31 Player: Gumbus Result: Destroyed self with Rocket Launcher Performance ------------- Evolutions (1) 500 Regions Visited (3) 600 Robots Destroyed (22) 110 Value Destroyed (514) 514 Prototype IDs (3) 60 Alien Tech Used (0) 0 Bonus (0) 0 TOTAL SCORE: 1784 Bonus ------- None Cogmind --------- Core Integrity 0/400 Matter 372/450 Energy 250/250 System Corruption 0% Temperature Cool (0) Movement Walking (190) Ox1 Location -9/Materials Parts ------- > --- POWER (2) -------- Ion Engine > --- PROPULSION (2) --- Aluminum Leg > --- UTILITY (3) ------ Heat Sink Compact Matter Pod > --- WEAPON (2) ------- Rocket Launcher > --- INVENTORY (5) ---- Aluminum Leg Aluminum Leg Improved Aluminum Leg Peak State ------------ > --- POWER ------------ Ion Engine > --- PROPULSION ------- Armored Wheel Armored Wheel > --- UTILITY ---------- Compact Matter Pod Compact Matter Pod Light Armor Plating > --- WEAPON ----------- Advanced Beam Cannon Rocket Launcher > --- INVENTORY -------- Light Ion Engine Aluminum Leg Aluminum Leg Light Assault Rifle Light Assault Rifle [Rating: 17] Favorites ----------- Power Ion Engine Engine Ion Engine Propulsion Aluminum Leg Leg Aluminum Leg Wheel Armored Wheel Hover Unit Hover Unit Utility Compact Matter Pod Device Heat Sink Storage Compact Matter Pod Processor Visual Processing Unit Protection Light Armor Plating Weapon Light Assault Rifle Energy Cannon Advanced Beam Cannon Ballistic Gun Light Assault Rifle Launcher Rocket Launcher Build | -11 -10 -10 -9 ------- Run | Yrd Mat Min Mat Slots Evolved 2 | . . . 2 Power 1 | . . . 1 Propulsion . | . . . . Utility 1 | . . . 1 Weapon . | . . . . Parts Attached 28 | 6 10 2 10 Power 5 | 1 3 . 1 Engine 5 | 1 3 . 1 Core . | . . . . Reactor . | . . . . Propulsion 7 | 2 1 . 4 Treads . | . . . . Leg 2 | . . . 2 Wheel 4 | 2 . . 2 Hover 1 | . 1 . . Flight . | . . . . Utility 9 | 1 4 1 3 Device 4 | 1 1 . 2 Storage 2 | . . 1 1 Processor 1 | . 1 . . Hackware . | . . . . Protection 2 | . 2 . . Artifact . | . . . . Weapon 7 | 2 2 1 2 Energy Gun . | . . . . Energy Cannon 1 | . . . 1 Ballistic Gun 4 | 2 2 . . Ballistic Cannon . | . . . . Launcher 2 | . . 1 1 Special Weapon . | . . . . Impact Weapon . | . . . . Slashing Weapon . | . . . . Piercing Weapon . | . . . . Special Melee Weapon . | . . . . Unidentified Prototypes 1 | . . . 1 Parts Lost 14 | . 4 . 10 Power 3 | . 1 . 2 Propulsion 4 | . 2 . 2 Utility 3 | . 1 . 2 Weapon 4 | . . . 4 Highest Loss Streak 8 | . 4 . 8 To Critical Strikes . | . . . . Average Backups 3 | 2 3 4 3 Power . | . . 1 . Propulsion 2 | 1 2 2 2 Utility . | . . 1 . Weapon . | . . . . Tool/Special . | . . . . Unused Backups 4 | . 1 . 3 Power . | . . . . Propulsion 4 | . 1 . 3 Utility . | . . . . Weapon . | . . . . Tool/Special . | . . . . Average Slot Usage (%) 80 | . 80 85 78 Engine 13 | . 13 14 13 Leg 6 | . . . 10 Wheel 5 | . 10 . 6 Hover 5 | . 6 14 2 Device 7 | . 13 . 7 Storage 9 | . . 5 13 Protection 9 | . 8 22 4 Energy Cannon 1 | . . . 3 Ballistic Gun 13 | . 26 15 7 Launcher 7 | . . 12 9 Peak Build Rating 17 | 5 7 9 17 Average Rating 9 | 3 5 7 11 On Entrance 5 | . 5 6 9 Naked Turns . | . . . . Heaviest Build 21 | 5 13 16 21 Greatest Support 24 | 20 20 6 24 Greatest Overweight (x) 2 | . 2 2 2 Average Overweight (x) . | . 1 2 . Largest Inventory Capacity 5 | 5 5 5 5 Average Capacity 5 | 5 5 5 5 Most Carried 5 | 4 5 5 5 Average Carried 3 | 2 3 4 3 Final Capacity 5 | 5 5 5 5 Final Carried 5 | 3 5 5 3 Class Distribution -------------------- 90% | Mutant 9% | Scavenger-Mutant Dominant Class ---------------- Scavenger-Mutant | -10/Materials Mutant | -10/Mines Mutant | -9/Materials Resources | -11 -10 -10 -9 ----------- Run | Yrd Mat Min Mat Matter Collected 913 | 288 145 342 138 Remotely 145 | . 145 . . Salvage Created 397 | 33 126 34 204 Parts 34 | 2 12 5 15 Haulers Intercepted . | . . . . Recyclers Shooed 1 | . 1 . . Parts Field Recycled . | . . . . Retrieved Matter . | . . . . Parts Self-Destructed . | . . . . Prevented . | . . . . Kills | -11 -10 -10 -9 ------- Run | Yrd Mat Min Mat Combat Hostiles Destroyed 19 | 1 6 2 10 Guns 10 | 1 6 . 3 Cannons 1 | . . . 1 AOE 8 | . . 2 6 Classes Destroyed 6 | 1 2 1 2 Builder 1 | . . 1 . Watcher 2 | . 1 . 1 Swarmer 9 | . 5 . 4 Grunt 8 | 1 1 2 4 Duelist 1 | . . . 1 Sentry 1 | . . . 1 Best Kill Streak 4 | 1 4 3 4 Combat Bots Only 4 | 1 3 2 4 Max Kills in Single Turn 2 | 1 2 1 2 Gunslinging 1 | . 1 . . Exploded 2 | . . 1 2 Melee . | . . . . Uniques/NPCs Destroyed . | . . . . Combat | -11 -10 -10 -9 -------- Run | Yrd Mat Min Mat Hostile Shots Fired 193 | 7 70 9 107 Missed 52 | . 20 3 29 Hits 141 | 7 50 6 78 Melee 4 | . . . 4 Projectile 137 | 7 50 6 74 Critical Strikes 2 | . . . 2 Damage Taken 1835 | 74 436 93 1232 Core 555 | 20 105 . 430 Absorbed by Shields . | . . . . Core Remaining (%) 71 | 92 . 50 . Volleys Fired 85 | 14 24 7 40 Largest 2 | 1 2 2 2 Hottest 101 | 20 40 53 101 Shots Fired 131 | 14 47 14 56 Gun 91 | 14 47 7 23 Cannon 18 | . . . 18 Launcher 22 | . . 7 15 Special . | . . . . Kinetic 91 | 14 47 7 23 Thermal 18 | . . . 18 Explosive 22 | . . 7 15 Electromagnetic . | . . . . Robot Hit Streak 5 | 4 5 3 5 Robot Miss Streak 5 | 3 5 2 4 Penetration Max . | . . . . Secondary Targets 2 | . 2 . . Max Gunslinging Chain 1 | . 1 . . Shots Hit Robots 63 | 7 20 7 29 Core Hits 41 | 3 13 4 21 Critical Kills . | . . . . Critical Parts Destroyed . | . . . . Critical Strikes . | . . . . Melee Attacks . | . . . . Impact . | . . . . Slashing . | . . . . Piercing . | . . . . Sneak Attacks . | . . . . Combat Hostiles . | . . . . Follow-up Attacks . | . . . . Damage Inflicted 1663 | 70 187 433 973 Guns 399 | 70 187 23 119 Cannons 184 | . . . 184 Explosions 1080 | . . 410 670 Melee . | . . . . Ramming . | . . . . Kinetic 399 | 70 187 23 119 Thermal 184 | . . . 184 Explosive 1080 | . . 410 670 Electromagnetic . | . . . . Impact . | . . . . Slashing . | . . . . Piercing . | . . . . Highest Corruption . | . . . . Average Corruption . | . . . . Corruption Purged . | . . . . Corruption Blocked . | . . . . Overload Shots . | . . . . Overflow Damage 87 | . . 19 68 Projectiles 11 | . . . 11 Explosions 76 | . . 19 57 Melee . | . . . . Knockbacks . | . . . . Impact . | . . . . Kinetic . | . . . . Secondary . | . . . . Self-Inflicted Damage 194 | . . . 194 Shots 6 | . . . 6 Rammed . | . . . . Targets Rammed . | . . . . Kicked . | . . . . Crushed . | . . . . Highest Temperature 372 | . 14 171 372 Average Temperature 131 | . 4 88 156 Received Heat Transfer 483 | 42 48 54 339 Effects 4 | . . . 4 Shutdowns 1 | . . . 1 Interference 3 | . . . 3 Siege Activations . | . . . . Martial Activations . | . . . . Shielding Activations . | . . . . Robots Disrupted . | . . . . Combat Hostiles . | . . . . Robots Corrupted . | . . . . Combat Hostiles . | . . . . Parts Fried . | . . . . Impact Corruptions . | . . . . Robots Melted . | . . . . Combat Hostiles . | . . . . Parts Melted . | . . . . Heat Transferred 333 | . . . 333 Parts Sabotaged . | . . . . Parts Stolen . | . . . . Parts Stripped . | . . . . Power Chain Reactions . | . . . . Alert | -11 -10 -10 -9 ------- Run | Yrd Mat Min Mat Maximum Alert Level . | . . . . Low Security (%) 100 | 100 100 100 100 Level 1 . | . . . . Level 2 . | . . . . Level 3 . | . . . . Level 4 . | . . . . Level 5 . | . . . . High Security . | . . . . Max Security . | . . . . Peak Influence 135 | 20 60 80 135 Initial 6 | . 6 . . Average 20 | 3 25 30 17 Influence Increases 620 | 20 137 90 373 Destroy 0b10 Robot/C 380 | 20 120 40 200 Destroy 0b10 Robot/NC 15 | . 5 5 5 Destroy Leader 74 | . 12 10 52 Disable Machine 15 | . . . 15 Destroy Structure 136 | . . 35 101 Influence Decreases 481 | 10 147 90 234 Entered New Map 4 | . 4 . . Time Decay 362 | 10 103 90 159 Lost Part 115 | . 40 . 75 Squads Dispatched 3 | . 1 . 2 Investigation 1 | . . . 1 Extermination . | . . . . Reinforcement 2 | . 1 . 1 Assault . | . . . . Garrison . | . . . . Intercept . | . . . . Searches Triggered . | . . . . Construction Impeded . | . . . . Haulers Reinforced . | . . . . Active Scanning Responses . | . . . . Cargo Convoy Interrupts . | . . . . Stealth | -11 -10 -10 -9 --------- Run | Yrd Mat Min Mat Distress Signals 1 | . . . 1 Communications Jammed . | . . . . Distress Signals . | . . . . Times Spotted 30 | 1 14 2 13 Peak Tracking Total 5 | 1 4 2 5 Tactical Retreats . | . . . . Traps | -11 -10 -10 -9 ------- Run | Yrd Mat Min Mat Traps Triggered 1 | . . . 1 Indirectly . | . . . . Trap Hack Attempts . | . . . . Triggered . | . . . . Disarmed . | . . . . Reprogrammed . | . . . . Reused . | . . . . Traps Extracted . | . . . . Installed . | . . . . Triggered . | . . . . Machines | -11 -10 -10 -9 ---------- Run | Yrd Mat Min Mat Machines Disabled 1 | . . . 1 Max in Single Turn 1 | . . . 1 Machines Repaired . | . . . . Machines Dismantled . | . . . . Machines Sabotaged . | . . . . Overloaded Fab Kills . | . . . . Hacking | -11 -10 -10 -9 --------- Run | Yrd Mat Min Mat Machines Accessed 1 | . . . 1 Terminals 1 | . . . 1 Fabricators . | . . . . Repair Stations . | . . . . Recycling Units . | . . . . Scanalyzers . | . . . . Garrison Access . | . . . . Total Hacks 3 | . . . 3 Successful 1 | . . . 1 Failed 2 | . . . 2 Catastrophic . | . . . . Database Lockouts . | . . . . Manual . | . . . . Terminals 3 | . . . 3 Fabricators . | . . . . Repair Stations . | . . . . Recycling Units . | . . . . Scanalyzers . | . . . . Garrison Access . | . . . . Terminal Hacks 1 | . . . 1 Prototype ID Bank 1 | . . . 1 Fabricator Hacks . | . . . . Repair Station Hacks . | . . . . Recycling Unit Hacks . | . . . . Scanalyzer . | . . . . Garrison Access Hacks . | . . . . Unauthorized Hacks . | . . . . Terminals . | . . . . Fabricators . | . . . . Repair Stations . | . . . . Recycling Units . | . . . . Scanalyzers . | . . . . Garrison Access . | . . . . Data Cores Recovered . | . . . . Used . | . . . . Hacking Detections 1 | . . . 1 Full Trace Events . | . . . . Feedback Events . | . . . . Feedback Blocked . | . . . . Robot Schematics Acquired . | . . . . Robots Built . | . . . . Authchips . | . . . . Time . | . . . . Total Robot Build Rating . | . . . . Part Schematics Acquired . | . . . . Parts Built . | . . . . Authchips . | . . . . Time . | . . . . Total Part Build Rating . | . . . . Parts Repaired . | . . . . Time . | . . . . Parts Recycled . | . . . . Recycled Matter . | . . . . Retrieved Matter . | . . . . Retrieved Components . | . . . . Parts Scanalyzed . | . . . . Part Schematics Acquired . | . . . . Parts Damaged . | . . . . Bothacking | -11 -10 -10 -9 ------------ Run | Yrd Mat Min Mat Used RIF Installer . | . . . . Robots Hacked . | . . . . Non-combat . | . . . . Combat . | . . . . Robot Hacks Applied . | . . . . Relay Couplers Released . | . . . . Fabnet Peak Effective % . | . . . . Robots Rewired . | . . . . Allies Hacked . | . . . . Hacks Repelled . | . . . . Allies | -11 -10 -10 -9 -------- Run | Yrd Mat Min Mat Total Allies . | . . . . Largest Group . | . . . . Highest-Rated Group . | . . . . Highest-Rated Ally . | . . . . Total Orders . | . . . . Ally Attacks . | . . . . Total Damage . | . . . . Kills . | . . . . Allies Corrupted . | . . . . Allies Melted . | . . . . Intel | -11 -10 -10 -9 ------- Run | Yrd Mat Min Mat Active Infowar (turns) 253 | . 40 . 213 Optics 40 | . 40 . . Sensors 213 | . . . 213 Robot Analysis Total . | . . . . Derelict Logs Recovered . | . . . . Drone Launches . | . . . . Drone Recoveries . | . . . . Exploration | -11 -10 -10 -9 ------------- Run | Yrd Mat Min Mat Turns Passed 1414 | 96 263 263 792 Spaces Moved 933 | 79 138 131 585 Core 50 | 26 16 . 8 Treads . | . . . . Legs 282 | . . . 282 Wheels 321 | 53 49 . 219 Hover 280 | . 73 131 76 Flight . | . . . . Fastest Speed 50 | 50 50 180 50 Average Speed 122 | 70 125 180 115 Slowest Speed 180 | 80 180 180 180 Overloaded Moves . | . . . . Propulsion Burnouts . | . . . . Robots Hopped . | . . . . Potential Cave-ins . | . . . . Cave-ins Triggered . | . . . . Exploration Rate (%) 21 | 7 23 33 24 Regions Visited 3 Branch Regions 1 Pre-discovered Areas . | . . . . Known Exits Taken . | . . . . Unknown Exits Taken 3 | 1 1 1 . Scrap Searched . | . . . . Spaces Dug . | . . . . Terrain Destroyed 163 | . . 43 120 Melee . | . . . . Projectile . | . . . . AOE 163 | . . 43 120 Terrain Rammed . | . . . . Walls Destroyed . | . . . . Machines Disabled . | . . . . Actions | -11 -10 -10 -9 --------- Run | Yrd Mat Min Mat Total 1094 | 106 191 148 649 Wait . | . . . . Move 930 | 78 137 130 585 Hop . | . . . . Pick Up 34 | 8 13 4 9 Fast Attach 1 | . . . 1 Attach 24 | 5 7 1 11 Detach . | . . . . Swap 8 | 1 4 2 1 Drop 12 | . 6 4 2 Fire 85 | 14 24 7 40 Melee . | . . . . Ram . | . . . . Kick . | . . . . Crush . | . . . . Escape Stasis . | . . . . Rewire . | . . . . Trap . | . . . . Miscellaneous . | . . . . Route ------- -11/Scrapyard -10/Materials (discovered 2 exits: [*Min x2]) -10/Mines -9/Materials History --------- Turn | Location | Event 2 | -11/Scrapyard | Met Revision 17 53 | -11/Scrapyard | Discovered new exit (range 8) 97 | -11/Scrapyard | Entered Materials 243 | -10/Materials | Lost 4 parts (1p2n1u) 306 | -10/Materials | Discovered new exit (range 14) 343 | -10/Materials | Discovered new exit (range 15) 360 | -10/Materials | Entered Mines 376 | -10/Mines | Received a Rocket Launcher from a helpful Derelict 450 | -10/Mines | Discovered new exit (range 6) 563 | -10/Mines | Build established: Mutant 623 | -10/Mines | Entered Materials 623 | -9/Materials | Evolved 2 slots: Power x1, Utility x1 1014 | -9/Materials | Core integrity fell below 50% 1039 | -9/Materials | Core integrity fell below 20% 1063 | -9/Materials | Lost 8 parts (2p1n2u3w) 1415 | -9/Materials | Destroyed self with Rocket Launcher Last Messages --------------- U-05 Engineer builds a Wall. K-01 Serf collects debris. U-05 Engineer builds a Wall. K-01 Serf collects debris. U-05 Engineer builds a Wall. S-10 Pest destroyed. Destroyed Lgt. Ion Engine. U-05 Engineer lays Concrete. The unstable cave ceiling collapses. U-05 Engineer lays Concrete. Lgt. Assault Rifle destroyed. K-01 Serf collects debris. S-10 Pest destroyed. K-01 Serf collects debris. Destroyed Flight Unit. K-01 Serf collects debris. [Achievement: Let's See Who's Tougher] S-10 Pest destroyed. Aluminum Leg destroyed. Destroyed Aluminum Leg. Map ----- +----------------------------------------------------+ | ?????????????????????????????????????????????????? | | ?????????????????????????????????????????????????? | | ?????????????????????????????????????????????????? | | ?????????????????????????????????????????????????# | | ?????????????????????????????????????????????????# | | ?????????????????????????????????????????????????# | | ??????????????????????????????#####??????????????# | | ??????????????????????????????# #??????????????# | | ??????????????????????????????# #??????????????# | | ??????????????????????????????# #??????????????# | | ??????????????????????????????# ################ | | ??????########????????????????# | | # ????# """ #????????????????# | | ???# """ #????????????????# ### ########### | | ???# """ #????????????????# #?# #?????????# | | ??# #??###???#####???# #?# #?????????# | | # ??# ?#### ##### #???# #?# #?????????# | | ?# ?# ???# # ######## #?# #?????????# | | ?# ## ######### ## #?# #?????????# | | ?# #?# #?????????# | | ?# ###### #?# #?????????# | | ?# ########## ## # ######### #?????????# | | ##### #########???## # #?????????# | | ! ################# ########### | | """ + | | """ [! """ #### @######################## | | """ % [ """ #??## ????# #??????? | | """ ?# [ #???#k#????# ^ #??????? | | ???# #???# #????# #??????? | | ####????# # #???# #????# #### #??????? | | ????????# # #############+###### #???? #??????# | | ????????# #??????????# # #????? #??????# | | ????????# #??????????# == + #??????#??????# | | ????????# #??????????# =* # #?????????????# | | ????????# #??????????# * # #?????????????# | | ???????? +??????????########### #?????????????# | | ???????? #????????????????????### #?????????????# | | ???????? #??????????????????????? #?????????????# | | ???????? #??????????????????????? #?????????????# | | ??????? #??????????????????????? #?????????????# | | ??????? ??????????????????????? #?????????????? | | ??????? ??????????????????????? #?????????????? | | ??????? ??????????????????????? #?????????????? | | ?????? ??????????????????????? #?????????????? | | ?????? ??????????????????????????????????????? | | ?????? ??????????????????????????????????????? | | ?????? ??????????????????????????????????????? | | ??????? ??????????????????????????????????????? | | ?????????????????????????????????????????????????? | | ?????????????????????????????????????????????????? | +----------------------------------------------------+ Best States ------------- Heat Dissipation 38 Energy Generation 15 Energy Capacity 275 Matter Stores 580 Matter Capacity 600 Sight Range 18 Robot Scan Range 14 Terrain Scan Density 10 Armor Coverage 300 Evasion (%) 55 Item Schematics ----------------- None Robot Schematics ------------------ None Fabricated ------------ Nothing Repaired ---------- Nothing Alien Tech Used ----------------- None Achievements -------------- Let's See Who's Tougher Risk Taker Storm Trooper Uninvited Guest Use The Force Challenges ------------ None Game ------ Seed WarlordBladeScreen Manual? 0 Play Time 00:19:51 Cumulative 0.6 hours Start 2025.09.01 @ 20:41:07 End 2025.09.01 @ 20:59:31 Sessions 1 Manual Loads 0 Difficulty Rogue Special Mode None Game No. 2 Rogue 2 Adventurer 0 Explorer 0 Win Type - Total 0 Types 0/0/0/0/0/0/0/0/0/0 Lore% 0 Gallery% 1 Achievement% 2 Wizard Run 0 Options --------- Layout 1 ASCII 0 Keyboard 0 Movement Mouse Keybinds 0 Fullscreen 1 Font 32/SmallcapsGlow Map View 50x35 Zoom Use 0% Tactical HUD 0 Map Filters NONE Filters NONE Steam 1 RUN: dbe94cb1-dd31-4d6b-8329-c90832b1a1bd